fUST/lending_fUST_20240711
["ID","MTS","AMOUNT","RATE_DAILY","PERIOD"]
[331701418,1720662643615,-2262.648393,0.00032199,7]
[331701419,1720662643624,-661.00525482,0.00032199,7]
[331701420,1720662643644,-1601.64313818,0.00032199,7]
[331701421,1720662643654,-151.0,0.00032199,7]
[331701422,1720662643663,-3320.96384,0.00032199,7]
[331701423,1720662643673,-676.11548,0.00032199,7]
[331701424,1720662643682,-3320.96384,0.00032199,7]
[331701425,1720662643691,-676.11548,0.00032199,7]
[331701426,1720662643700,-157.839308,0.00032199,7]
[331701427,1720662643710,-157.839308,0.00032199,7]
[331701428,1720662643719,-270.75944258,0.00032199,2]
[331701429,1720662643728,-135581.28281962,0.00032201,2]
[331701430,1720662643738,-151.0,0.00032201,7]
[331701431,1720662643747,-151.0,0.00032201,7]
[331701432,1720662643756,-755.65066,0.00032201,7]
[331701433,1720662643765,-755.65066,0.00032201,7]
[331701434,1720662643775,-856.414137,0.00032201,7]
[331701435,1720662643784,-151.0,0.00032201,2]
[331701436,1720662643793,-856.414137,0.00032201,7]
[331701437,1720662643802,-158.649006,0.00032201,2]
[331701438,1720662643811,-203.32119,0.00032201,7]
[331701439,1720662643820,-203.32119,0.00032201,7]
[331701440,1720662643832,-520.028921,0.00032201,7]
[331701441,1720662643841,-520.028921,0.00032201,7]
[331701442,1720662643850,-156.672374,0.00032201,7]
[331701443,1720662643859,-156.672374,0.00032201,7]
[331701444,1720662643869,-179.089878,0.00032201,7]
[331701445,1720662643878,-179.089878,0.00032201,7]
[331701446,1720662643887,-359.38673,0.00032201,7]
[331701447,1720662643896,-151.0,0.00032201,7]
[331701448,1720662643906,-359.38673,0.00032201,7]
[331701449,1720662643916,-151.0,0.00032201,7]
[331701450,1720662643925,-2262.648393,0.00032201,7]
[331701451,1720662643936,-2262.648393,0.00032201,7]
[331701452,1720662643947,-151.0,0.00032201,7]
[331701453,1720662643957,-3320.96384,0.00032201,7]
[331701454,1720662643966,-676.11548,0.00032201,7]
[331701455,1720662643976,-3320.96384,0.00032201,7]
[331701456,1720662643985,-676.11548,0.00032201,7]
[331701457,1720662643994,-157.839308,0.00032201,7]
[331701458,1720662644003,-157.839308,0.00032201,7]
[331701459,1720662644013,-154.59033561,0.00032229,4]
[331701460,1720662644023,-154.59033561,0.00032229,4]
[331701461,1720662644032,-151.0,0.0003224,4]
[331701462,1720662644042,-160.0,0.00032297,7]
[331701463,1720662644052,-263.203,0.00032299,2]
[331701464,1720662644062,-1406.0,0.00032299,2]
[331701465,1720662644071,-151.0,0.00032452,7]
[331701466,1720662644084,-151.0,0.00032452,7]
[331701467,1720662644093,-151.0,0.00032452,7]
[331701468,1720662644103,-151.0,0.00032452,7]
[331701469,1720662644113,-151.0,0.00032755,5]
[331701470,1720662644122,-160.0,0.00032773,8]
[331701471,1720662644131,-502.9945395,0.00032876,2]
[331701472,1720662644140,-301.12860037,0.00032876,7]
[331701473,1720662644150,-509.86080475,0.00032876,7]
[331701474,1720662644160,-532.15749455,0.00032876,7]
[331701475,1720662644169,-639.20479344,0.00032876,7]
[331701476,1720662644178,-164.620352,0.00032876,7]
[331701477,1720662644187,-500.0,0.00032876,7]
[331701478,1720662644196,-500.0,0.00032876,7]
[331701479,1720662644205,-500.0,0.00032876,7]
[331701480,1720662644215,-500.0,0.00032876,7]
[331701481,1720662644224,-500.0,0.00032876,7]
[331701482,1720662644233,-500.0,0.00032876,7]
[331701483,1720662644242,-500.0,0.00032876,7]
[331701484,1720662644252,-500.0,0.00032876,7]
[331701485,1720662644262,-500.0,0.00032876,7]
[331701486,1720662644273,-500.0,0.00032876,7]
[331701487,1720662644283,-500.0,0.00032876,7]
[331701488,1720662644292,-500.0,0.00032876,7]
[331701489,1720662644303,-500.0,0.00032876,7]
[331701490,1720662644313,-500.0,0.00032876,7]
[331701491,1720662644323,-500.0,0.00032876,7]
[331701492,1720662644334,-500.0,0.00032876,7]
[331701493,1720662644342,-500.0,0.00032876,7]
[331701494,1720662644351,-500.0,0.00032876,7]
[331701495,1720662644360,-500.0,0.00032876,7]
[331701496,1720662644369,-500.0,0.00032876,7]
[331701497,1720662644379,-500.0,0.00032876,7]
[331701498,1720662644388,-500.0,0.00032876,7]
[331701499,1720662644399,-518.21374054,0.00032876,7]
[331701500,1720662644408,-515.26768314,0.00032876,7]
[331701501,1720662644418,-560.99005077,0.00032876,7]
[331701502,1720662644427,-503.60399182,0.00032876,7]
[331701503,1720662644437,-327.80685678,0.00032876,7]
[331701504,1720662644447,-500.0,0.00032876,7]
[331701505,1720662644457,-632.29556562,0.00032876,7]
[331701506,1720662644467,-503.06573629,0.00032876,7]
[331701507,1720662644476,-500.0,0.00032876,7]
[331701508,1720662644487,-503.84132892,0.00032876,7]
[331701509,1720662644496,-502.5707357,0.00032876,7]
[331701510,1720662644506,-376.01287,0.00032876,7]
[331701511,1720662644515,-511.01571177,0.00032876,7]
[331701512,1720662644524,-510.29106682,0.00032876,7]
[331701513,1720662644533,-376.01287,0.00032876,7]
[331701514,1720662644543,-500.0,0.00032876,7]
[331701515,1720662644552,-178.707988,0.00032876,7]
[331701516,1720662644561,-528.52275508,0.00032876,7]
[331701517,1720662644571,-500.0,0.00032876,7]
[331701518,1720662644583,-178.707988,0.00032876,7]
[331701519,1720662644592,-502.82742443,0.00032876,7]
[331701520,1720662644601,-505.99401703,0.00032876,7]
[331701521,1720662644611,-512.46239049,0.00032876,7]
[331701522,1720662644621,-479.29304862,0.00032876,7]
[331701523,1720662644632,-504.53755586,0.00032876,7]
[331701524,1720662644641,-500.0,0.00032876,7]
[331701525,1720662644650,-505.58590516,0.00032876,7]
[331701526,1720662644659,-502.13801024,0.00032876,7]
[331701527,1720662644668,-1459.56,0.00032876,4]
[331701528,1720662644678,-500.0,0.00032876,2]
[331701529,1720662644687,-502.60684401,0.00032876,7]
[331701530,1720662644696,-503.5058541,0.00032876,7]
[331701531,1720662644705,-500.0,0.00032876,7]
[331701532,1720662644715,-510.0203626,0.00032876,7]
[331701533,1720662644725,-500.0,0.00032876,7]
[331701534,1720662644735,-500.0,0.00032876,2]
[331701535,1720662644745,-511.19878293,0.00032876,7]
[331701536,1720662644754,-151.0,0.00032876,7]
[331701537,1720662644764,-290.16021678,0.00032876,7]
[331701538,1720662644774,-151.0,0.00032876,7]
[331701539,1720662644783,-500.0,0.00032876,7]
[331701540,1720662644793,-151.0,0.00032876,7]
[331701541,1720662644803,-191.699334,0.00032876,7]
[331701542,1720662644812,-500.0,0.00032876,7]
[331701543,1720662644821,-500.0,0.00032876,7]
[331701544,1720662644833,-500.0,0.00032876,7]
[331701545,1720662644843,-640.5086711,0.00032876,7]
[331701546,1720662644852,-500.0,0.00032876,7]
[331701547,1720662644862,-500.0,0.00032876,7]
[331701548,1720662644871,-500.0,0.00032876,7]
[331701549,1720662644881,-1627.1,0.00032876,7]
[331701550,1720662644890,-916.63,0.00032876,7]
[331701551,1720662644900,-500.0,0.00032876,7]
[331701552,1720662644909,-3882.93,0.00032876,7]
[331701553,1720662644919,-533.48997038,0.00032876,2]
[331701554,1720662644928,-500.0,0.00032876,7]
[331701555,1720662644937,-500.0,0.00032876,7]
[331701556,1720662644948,-500.0,0.00032876,7]
[331701557,1720662644958,-540.29120448,0.00032876,7]
[331701558,1720662644968,-500.0,0.00032876,7]
[331701559,1720662644978,-821.87,0.00032876,7]
[331701560,1720662644987,-500.0,0.00032876,7]
[331701561,1720662644998,-1112.54,0.00032876,7]
[331701562,1720662645008,-500.0,0.00032876,7]
[331701563,1720662645018,-585.87,0.00032876,7]
[331701564,1720662645028,-565.89,0.00032876,7]
[331701565,1720662645038,-500.0,0.00032876,7]
[331701566,1720662645048,-500.0,0.00032876,7]
[331701567,1720662645057,-500.0,0.00032876,7]
[331701568,1720662645066,-508.78410784,0.00032876,7]
[331701569,1720662645077,-504.21279752,0.00032876,7]
[331701570,1720662645087,-511.084096,0.00032876,7]
[331701571,1720662645096,-500.0,0.00032876,7]
[331701572,1720662645105,-507.15737686,0.00032876,7]
[331701573,1720662645115,-509.25492053,0.00032876,7]
[331701574,1720662645124,-500.0,0.00032876,7]
[331701575,1720662645134,-500.0,0.00032876,7]
[331701576,1720662645143,-506.21113113,0.00032876,7]
[331701577,1720662645153,-500.0,0.00032876,7]
[331701578,1720662645163,-500.0,0.00032876,7]
[331701579,1720662645172,-504.09747931,0.00032876,7]
[331701580,1720662645182,-502.13604143,0.00032876,7]
[331701581,1720662645191,-500.0,0.00032876,7]
[331701582,1720662645200,-529.75041842,0.00032876,7]
[331701583,1720662645210,-509.32352373,0.00032876,7]
[331701584,1720662645219,-500.0,0.00032876,7]
[331701585,1720662645228,-500.0,0.00032876,7]
[331701586,1720662645237,-500.0,0.00032876,7]
[331701587,1720662645247,-175.5408137,0.00032876,7]
[331701588,1720662645256,-656.98,0.00032876,7]
[331701589,1720662645266,-511.39439832,0.00032876,7]
[331701590,1720662645275,-151.0,0.00032876,7]
[331701591,1720662645284,-155.37826238,0.00032876,7]
[331701592,1720662645294,-504.89500772,0.00032876,7]
[331701593,1720662645304,-500.0,0.00032876,7]
[331701594,1720662645314,-500.0,0.00032876,7]
[331701595,1720662645323,-500.606234,0.00032876,7]
[331701596,1720662645335,-500.0,0.00032876,7]
[331701597,1720662645344,-500.0,0.00032876,7]
[331701598,1720662645353,-500.0,0.00032876,7]
[331701599,1720662645363,-500.0,0.00032876,7]
[331701600,1720662645373,-500.0,0.00032876,7]
[331701601,1720662645382,-500.0,0.00032876,7]
[331701602,1720662645391,-500.0,0.00032876,7]
[331701603,1720662645401,-186.24773294,0.00032876,7]
[331701604,1720662645411,-500.0,0.00032876,7]
[331701605,1720662645420,-503.66230659,0.00032876,7]
[331701606,1720662645429,-155.979425,0.00032876,7]
[331701607,1720662645439,-511.27534355,0.00032876,7]
[331701608,1720662645448,-755.65066,0.00032876,7]
[331701609,1720662645458,-519.68300131,0.00032876,7]
[331701610,1720662645467,-508.87232539,0.00032876,7]
[331701611,1720662645477,-505.47703889,0.00032876,7]
[331701612,1720662645486,-755.65066,0.00032876,7]
[331701613,1720662645496,-578.44407192,0.00032876,7]
[331701614,1720662645505,-474.82168607,0.00032876,7]
[331701615,1720662645515,-459.77097584,0.00032876,7]
[331701616,1720662645523,-511.27066309,0.00032876,7]
[331701617,1720662645533,-506.88250024,0.00032876,7]
[331701618,1720662645542,-856.414137,0.00032876,7]
[331701619,1720662645551,-380.02280024,0.00032876,7]
[331701620,1720662645560,-830.69,0.00032876,7]
[331701621,1720662645569,-151.0,0.00032876,2]
[331701622,1720662645582,-856.414137,0.00032876,7]
[331701623,1720662645591,-521.92596149,0.00032876,7]
[331701624,1720662645599,-221.62805921,0.00032876,7]
[331701625,1720662645608,-523.64343137,0.00032876,7]
[331701630,1720662645710,-500.0,0.00032876,7]
[331701632,1720662645721,-508.34709448,0.00032876,7]
[331701634,1720662645730,-500.0,0.00032876,7]
[331701636,1720662645740,-515.11182804,0.00032876,7]
[331701638,1720662645749,-502.06043175,0.00032876,7]
[331701639,1720662645759,-516.75697011,0.00032876,7]
[331701640,1720662645769,-291.8435049,0.00032876,7]
[331701641,1720662645778,-500.0,0.00032876,7]
[331701642,1720662645788,-203.32119,0.00032876,7]
[331701643,1720662645797,-515.21584444,0.00032876,7]
[331701644,1720662645807,-503.92547854,0.00032876,7]
[331701646,1720662645816,-529.21350697,0.00032876,7]
[331701647,1720662645826,-203.32119,0.00032876,7]
[331701648,1720662645836,-198.85333845,0.00032876,7]
[331701649,1720662645846,-502.91551831,0.00032876,7]
[331701650,1720662645855,-505.6596864,0.00032876,7]
[331701651,1720662645865,-180.47101271,0.00032876,7]
[331701652,1720662645875,-483.32244362,0.00032876,7]
[331701653,1720662645885,-517.15648468,0.00032876,7]
[331701654,1720662645894,-237.84974112,0.00032876,7]
[331701657,1720662645904,-552.6666109,0.00032876,7]
[331701659,1720662645914,-511.16768208,0.00032876,7]
[331701661,1720662645923,-500.0,0.00032876,7]
[331701664,1720662645933,-505.42514594,0.00032876,7]
[331701666,1720662645943,-347.41848211,0.00032876,7]
[331701668,1720662645953,-202.80589411,0.00032876,7]
[331701670,1720662645963,-692.66,0.00032876,7]
[331701672,1720662645972,-516.85066936,0.00032876,7]
[331701673,1720662645983,-500.0,0.00032876,7]
[331701674,1720662645993,-510.77118145,0.00032876,7]
[331701675,1720662646002,-504.12112158,0.00032876,7]
[331701676,1720662646012,-1500.0,0.00032876,7]
[331701677,1720662646021,-516.79184332,0.00032876,7]
[331701678,1720662646031,-500.0,0.00032876,7]
[331701679,1720662646040,-2861.67,0.00032876,7]
[331701680,1720662646050,-520.028921,0.00032876,7]
[331701681,1720662646059,-1034.31,0.00032876,7]
[331701682,1720662646068,-500.0,0.00032876,7]
[331701683,1720662646079,-500.0,0.00032876,7]
[331701684,1720662646089,-500.0,0.00032876,7]
[331701685,1720662646099,-500.0,0.00032876,7]
[331701686,1720662646109,-500.0,0.00032876,7]
[331701687,1720662646119,-500.0,0.00032876,7]
[331701688,1720662646128,-500.0,0.00032876,7]
[331701689,1720662646137,-520.06289906,0.00032876,7]
[331701691,1720662646147,-500.0,0.00032876,7]
[331701694,1720662646156,-500.0,0.00032876,7]
[331701697,1720662646166,-500.0,0.00032876,7]
[331701699,1720662646175,-500.0,0.00032876,7]
[331701701,1720662646185,-520.028921,0.00032876,7]
[331701703,1720662646194,-483.63792122,0.00032876,7]
[331701706,1720662646204,-156.672374,0.00032876,7]
[331701709,1720662646214,-500.0,0.00032876,7]
[331701712,1720662646223,-1585.22,0.00032876,7]
[331701715,1720662646232,-616.81,0.00032876,7]
[331701717,1720662646241,-156.672374,0.00032876,7]
[331701720,1720662646250,-470.01220556,0.00032876,7]
[331701723,1720662646260,-574.08,0.00032876,7]
[331701725,1720662646269,-509.54041308,0.00032876,7]
[331701727,1720662646279,-500.0,0.00032876,7]
[331701729,1720662646288,-514.4141306,0.00032876,7]
[331701731,1720662646297,-179.089878,0.00032876,7]
[331701732,1720662646307,-554.18,0.00032876,7]
[331701733,1720662646316,-179.089878,0.00032876,7]
[331701734,1720662646325,-359.38673,0.00032876,7]
[331701735,1720662646337,-157.78989102,0.00032876,7]
[331701737,1720662646346,-359.38673,0.00032876,7]
[331701739,1720662646357,-151.0,0.00032876,7]
[331701741,1720662646366,-151.0,0.00032876,7]
[331701743,1720662646376,-500.0,0.00032876,7]
[331701745,1720662646385,-500.0,0.00032876,7]
[331701747,1720662646395,-500.0,0.00032876,7]
[331701748,1720662646405,-500.0,0.00032876,7]
[331701749,1720662646415,-500.0,0.00032876,7]
[331701750,1720662646425,-500.0,0.00032876,7]
[331701751,1720662646435,-241.03281004,0.00032876,7]
[331701752,1720662646445,-496.17477427,0.00032876,7]
[331701753,1720662646455,-1443.01,0.00032876,7]
[331701754,1720662646466,-541.57,0.00032876,7]
[331701755,1720662646476,-2262.648393,0.00032876,7]
[331701756,1720662646485,-2262.648393,0.00032876,7]
[331701757,1720662646495,-679.86,0.00032876,7]
[331701758,1720662646505,-504.24105807,0.00032876,7]
[331701759,1720662646515,-500.0,0.00032876,7]
[331701760,1720662646525,-151.0,0.00032876,7]
[331701761,1720662646535,-500.0,0.00032876,7]
[331701764,1720662646544,-2704.21,0.00032876,7]
[331701767,1720662646554,-158.6616312,0.00032876,7]
[331701770,1720662646563,-893.82,0.00032876,7]
[331701773,1720662646572,-556.49,0.00032876,7]
[331701776,1720662646583,-248.13234264,0.00032876,7]
[331701778,1720662646592,-507.59917498,0.00032876,7]
[331701780,1720662646601,-6641.28,0.00032876,7]
[331701782,1720662646610,-181.86153676,0.00032876,7]
[331701784,1720662646619,-500.0,0.00032876,7]
[331701785,1720662646628,-500.0,0.00032876,7]
[331701786,1720662646638,-500.0,0.00032876,7]
[331701787,1720662646647,-170.39922346,0.00032876,7]
[331701788,1720662646657,-3320.96384,0.00032876,7]
[331701789,1720662646666,-500.0,0.00032876,7]
[331701790,1720662646676,-676.11548,0.00032876,7]
[331701791,1720662646685,-3320.96384,0.00032876,7]
[331701792,1720662646695,-676.11548,0.00032876,7]
[331701793,1720662646705,-500.0,0.00032876,7]
[331701794,1720662646714,-543.85894791,0.00032876,2]
[331701795,1720662646724,-157.839308,0.00032876,7]
[331701796,1720662646733,-157.839308,0.00032876,7]
[331701797,1720662646743,-550.28096999,0.00032876,7]
[331701798,1720662646754,-248.73343512,0.00032876,7]
[331701799,1720662646763,-600.0,0.00032876,7]
[331701800,1720662646774,-156.0,0.0003297,62]
[331701801,1720662646783,-156.0,0.0003298,62]
[331701802,1720662646793,-156.0,0.0003299,62]
[331701803,1720662646803,-540.46737271,0.00033,30]
[331701804,1720662646813,-350.00820605,0.00033,30]
[331701805,1720662646823,-219.0,0.00033,2]
[331701806,1720662646836,-219.0,0.00033,2]
[331701807,1720662646846,-501.37482477,0.0003315,7]
[331701808,1720662646855,-500.64757361,0.0003315,7]
[331701809,1720662646864,-502.13374575,0.0003315,7]
[331701810,1720662646876,-555.99480381,0.0003315,7]
[331701811,1720662646886,-505.84872366,0.0003315,7]
[331701812,1720662646895,-1459.56,0.0003315,4]
[331701813,1720662646905,-585.28300967,0.0003315,2]
[331701814,1720662646914,-500.0,0.0003315,7]
[331701815,1720662646923,-500.0,0.0003315,7]
[331701816,1720662646933,-500.0,0.0003315,2]
[331701817,1720662646943,-500.0,0.0003315,7]
[331701818,1720662646954,-500.0,0.0003315,7]
[331701819,1720662646964,-500.0,0.0003315,7]
[331701820,1720662646973,-500.0,0.0003315,7]
[331701821,1720662646983,-500.0,0.0003315,7]
[331701822,1720662646992,-576.92146685,0.0003315,7]
[331701823,1720662647002,-500.0,0.0003315,7]
[331701824,1720662647012,-1627.1,0.0003315,7]
[331701825,1720662647021,-916.63,0.0003315,7]
[331701826,1720662647030,-500.0,0.0003315,7]
[331701827,1720662647039,-3882.93,0.0003315,7]
[331701828,1720662647048,-500.0,0.0003315,7]
[331701829,1720662647057,-500.0,0.0003315,7]
[331701830,1720662647067,-500.0,0.0003315,7]
[331701831,1720662647076,-500.0,0.0003315,7]
[331701832,1720662647088,-821.87,0.0003315,7]
[331701833,1720662647099,-500.0,0.0003315,7]
[331701834,1720662647110,-1112.54,0.0003315,7]
[331701835,1720662647119,-500.0,0.0003315,7]
[331701836,1720662647129,-585.87,0.0003315,7]
[331701837,1720662647138,-565.89,0.0003315,7]
[331701838,1720662647148,-500.0,0.0003315,7]
[331701839,1720662647157,-609.85873627,0.0003315,7]
[331701840,1720662647166,-500.0,0.0003315,7]
[331701841,1720662647175,-500.0,0.0003315,7]
[331701842,1720662647184,-500.0,0.0003315,7]
[331701843,1720662647193,-500.0,0.0003315,7]
[331701844,1720662647203,-500.0,0.0003315,7]
[331701845,1720662647212,-509.38177595,0.0003315,7]
[331701846,1720662647221,-635.8700441,0.0003315,7]
[331701847,1720662647231,-656.98,0.0003315,7]
[331701848,1720662647240,-500.0,0.0003315,7]
[331701849,1720662647250,-830.69,0.0003315,7]
[331701850,1720662647259,-622.93318735,0.0003315,7]
[331701851,1720662647268,-500.0,0.0003315,7]
[331701852,1720662647277,-530.4203538,0.0003315,7]
[331701853,1720662647287,-500.0,0.0003315,7]
[331701854,1720662647296,-692.66,0.0003315,7]
[331701855,1720662647305,-500.0,0.0003315,7]
[331701856,1720662647314,-1500.0,0.0003315,7]
[331701857,1720662647324,-500.0,0.0003315,7]
[331701858,1720662647337,-2861.67,0.0003315,7]
[331701859,1720662647348,-1034.31,0.0003315,7]
[331701860,1720662647357,-500.0,0.0003315,7]
[331701861,1720662647367,-1585.22,0.0003315,7]
[331701862,1720662647376,-616.81,0.0003315,7]
[331701863,1720662647385,-574.08,0.0003315,7]
[331701864,1720662647394,-500.0,0.0003315,7]
[331701865,1720662647403,-554.18,0.0003315,7]
[331701866,1720662647413,-500.0,0.0003315,7]
[331701867,1720662647422,-500.0,0.0003315,7]
[331701868,1720662647431,-500.0,0.0003315,7]
[331701869,1720662647440,-500.0,0.0003315,7]
[331701870,1720662647450,-500.0,0.0003315,7]
[331701871,1720662647459,-285.92165846,0.0003315,7]
[331701872,1720662647468,-1443.01,0.0003315,7]
[331701873,1720662647476,-541.57,0.0003315,7]
[331701874,1720662647486,-679.86,0.0003315,7]
[331701875,1720662647495,-500.0,0.0003315,7]
[331701876,1720662647504,-489.30334911,0.0003315,7]
[331701877,1720662647513,-2704.21,0.0003315,7]
[331701878,1720662647522,-893.82,0.0003315,7]
[331701879,1720662647737,-556.49,0.0003315,7]
[331701880,1720662647746,-6641.28,0.0003315,7]
[331701881,1720662647756,-500.0,0.0003315,7]
[331701882,1720662647765,-348.67485687,0.0003315,7]
[331701883,1720662647774,-581.21235626,0.0003315,7]
[331701884,1720662647784,-500.0,0.0003315,7]
[331701885,1720662647794,-500.0,0.0003315,7]
[331701886,1720662647803,-150.0,0.00033175,2]
[331701887,1720662647812,-300.0,0.0003324,2]
[331701888,1720662647822,-160.0,0.0003325,9]
[331701889,1720662647833,-290.79810635,0.0003325,5]
[331701890,1720662647843,-161.39215711,0.0003325,5]
[331701891,1720662647852,-151.0,0.0003327,5]
[331701892,1720662647861,-453.411488,0.00033295,2]
[331701893,1720662647871,-301.44757931,0.00033339,2]
[331701894,1720662647880,-544.23823273,0.00033346,7]
[331701895,1720662647889,-76083.56440166,0.000334,2]
[331701896,1720662647898,-376.01287,0.000334,7]
[331701897,1720662647907,-376.01287,0.000334,7]
[331701898,1720662647917,-178.707988,0.000334,7]
[331701899,1720662647926,-178.707988,0.000334,7]
[331701900,1720662647935,-151.0,0.000334,7]
[331701901,1720662647944,-151.0,0.000334,7]
[331701902,1720662647954,-151.0,0.000334,7]
[331701903,1720662647964,-151.0,0.000334,7]
[331701904,1720662647973,-755.65066,0.000334,7]
[331701905,1720662647982,-755.65066,0.000334,7]
[331701906,1720662647991,-856.414137,0.000334,7]
[331701907,1720662648000,-151.0,0.000334,2]
[331701908,1720662648009,-856.414137,0.000334,7]
[331701909,1720662648018,-203.32119,0.000334,7]
[331701910,1720662648028,-203.32119,0.000334,7]
[331701911,1720662648037,-520.028921,0.000334,7]
[331701912,1720662648046,-520.028921,0.000334,7]
[331701913,1720662648056,-156.672374,0.000334,7]
[331701914,1720662648065,-156.672374,0.000334,7]
[331701915,1720662648075,-179.089878,0.000334,7]
[331701916,1720662648090,-179.089878,0.000334,7]
[331701917,1720662648101,-359.38673,0.000334,7]
[331701918,1720662648113,-359.38673,0.000334,7]
[331701919,1720662648123,-151.0,0.000334,7]
[331701920,1720662648132,-151.0,0.000334,7]
[331701921,1720662648142,-2262.648393,0.000334,7]
[331701922,1720662648239,-2262.648393,0.000334,7]
[331701923,1720662648249,-151.0,0.000334,7]
[331701924,1720662648259,-3320.96384,0.000334,7]
[331701925,1720662648269,-676.11548,0.000334,7]
[331701926,1720662648279,-3320.96384,0.000334,7]
[331701927,1720662648288,-676.11548,0.000334,7]
[331701928,1720662648297,-157.839308,0.000334,7]
[331701929,1720662648306,-157.839308,0.000334,7]
[331701930,1720662648315,-1459.56,0.00033424,4]
[331701931,1720662648324,-500.0,0.00033424,7]
[331701932,1720662648338,-500.0,0.00033424,7]
[331701933,1720662648347,-500.0,0.00033424,2]
[331701934,1720662648357,-500.0,0.00033424,7]
[331701935,1720662648366,-500.0,0.00033424,7]
[331701936,1720662648375,-500.0,0.00033424,7]
[331701937,1720662648385,-500.0,0.00033424,7]
[331701938,1720662648396,-500.0,0.00033424,7]
[331701939,1720662648405,-500.0,0.00033424,7]
[331701940,1720662648414,-1627.1,0.00033424,7]
[331701941,1720662648423,-916.63,0.00033424,7]
[331701942,1720662648433,-500.0,0.00033424,7]
[331701943,1720662648442,-3882.93,0.00033424,7]
[331701944,1720662648451,-500.0,0.00033424,7]
[331701945,1720662648460,-500.0,0.00033424,7]
[331701946,1720662648470,-500.0,0.00033424,7]
[331701947,1720662648481,-508.66189471,0.00033424,7]
[331701948,1720662648491,-821.87,0.00033424,7]
[331701949,1720662648501,-500.0,0.00033424,7]
[331701950,1720662648512,-1112.54,0.00033424,7]
[331701951,1720662648522,-573.56082225,0.00033424,7]
[331701952,1720662648533,-585.87,0.00033424,7]
[331701953,1720662648542,-565.89,0.00033424,7]
[331701954,1720662648551,-500.0,0.00033424,7]
[331701955,1720662648562,-500.0,0.00033424,7]
[331701956,1720662648572,-500.0,0.00033424,7]
[331701957,1720662648585,-500.0,0.00033424,7]
[331701958,1720662648594,-474.93921109,0.00033424,7]
[331701959,1720662648605,-500.0,0.00033424,7]
[331701960,1720662648614,-656.98,0.00033424,7]
[331701961,1720662648623,-500.0,0.00033424,7]
[331701962,1720662648632,-830.69,0.00033424,7]
[331701963,1720662648641,-380.63778886,0.00033424,7]
[331701964,1720662648651,-500.0,0.00033424,7]
[331701965,1720662648660,-692.66,0.00033424,7]
[331701966,1720662648669,-500.0,0.00033424,7]
[331701967,1720662648678,-640.0,0.00033424,7]
[331701968,1720662648688,-421.27826806,0.00033424,7]
[331701969,1720662648698,-2861.67,0.00033424,7]
[331701970,1720662648707,-1034.31,0.00033424,7]
[331701971,1720662648716,-500.0,0.00033424,7]
[331701972,1720662648727,-1585.22,0.00033424,7]
[331701973,1720662648736,-616.81,0.00033424,7]
[331701974,1720662648745,-574.08,0.00033424,7]
[331701975,1720662648755,-500.0,0.00033424,7]
[331701976,1720662648764,-554.18,0.00033424,7]
[331701977,1720662648773,-500.0,0.00033424,7]
[331701978,1720662648782,-500.0,0.00033424,7]
[331701979,1720662648792,-500.0,0.00033424,7]
[331701980,1720662648801,-240.35979658,0.00033424,7]
[331701981,1720662648812,-500.0,0.00033424,7]